fUST/lending_fUST_20241011
["ID","MTS","AMOUNT","RATE_DAILY","PERIOD"]
[340108880,1728576351163,-300.0,0.00024999,2]
[340108881,1728576351186,-300.0,0.00024999,2]
[340108882,1728576351207,-157.81335813,0.00025,2]
[340108883,1728576351229,-1483.53116274,0.00025,2]
[340108884,1728576358109,-2661.26249909,0.00025,2]
[340108885,1728576432180,-210.0,0.00024898,2]
[340108886,1728576432201,-300.0,0.00024898,2]
[340108887,1728576432225,-7188.26114656,0.00024899,4]
[340108888,1728576434139,-165.01206972,0.00024899,4]
[340108889,1728576441104,-1653.84194938,0.00024907,2]
[340108898,1728576548202,-300.0,0.00024899,2]
[340108899,1728576548236,-13650.68022074,0.000249,4]
[340108900,1728576548258,-1346.15805062,0.00024907,2]
[340108901,1728576548280,-1000.94858904,0.00024999,2]
[340108902,1728576548307,-27894.8740996,0.00025,2]
[340108903,1728576560115,-6834.54009,0.00024028,2]
[340108904,1728576560142,-18065.45991,0.00024028,2]
[340108905,1728576560168,-17960.33223857,0.00025,2]
[340108906,1728576560190,-420.0,0.00026977,2]
[340108907,1728576560212,-166.37536846,0.00026982,2]
[340108908,1728576560236,-170.4651225,0.00027524,2]
[340108909,1728576560263,-238.375513,0.00028324,2]
[340108910,1728576560287,-238.375513,0.00028402,2]
[340108911,1728576560316,-238.375513,0.00028479,2]
[340108912,1728576560336,-238.375513,0.00028557,2]
[340108913,1728576560357,-238.375513,0.00028635,2]
[340108914,1728576560382,-238.375513,0.00028712,2]
[340108915,1728576560403,-238.375513,0.0002879,2]
[340108916,1728576560425,-238.375513,0.00028868,2]
[340108917,1728576560448,-238.375513,0.00028945,2]
[340108918,1728576560469,-238.375513,0.00029023,2]
[340108919,1728576560490,-238.375513,0.00029101,2]
[340108920,1728576560511,-332.0672175,0.00029157,2]
[340108921,1728576560537,-238.375513,0.00029178,2]
[340108922,1728576560559,-587.0,0.00029228,2]
[340108923,1728576560581,-238.375513,0.00029256,2]
[340108924,1728576560602,-238.375513,0.00029334,2]
[340108925,1728576560625,-238.375513,0.00029411,2]
[340108926,1728576560647,-238.375513,0.00029489,2]
[340108927,1728576560673,-238.375513,0.00029567,2]
[340108928,1728576560695,-238.375513,0.00029644,2]
[340108929,1728576560718,-238.375513,0.00029722,2]
[340108930,1728576560739,-500.0,0.00029769,2]
[340108931,1728576560761,-500.0,0.00029769,2]
[340108932,1728576560782,-500.0,0.00029769,2]
[340108933,1728576560803,-500.0,0.00029769,2]
[340108934,1728576560826,-500.0,0.00029769,2]
[340108935,1728576560847,-500.0,0.00029769,2]
[340108936,1728576560867,-500.0,0.00029769,2]
[340108937,1728576560888,-500.0,0.00029769,2]
[340108938,1728576560908,-500.0,0.00029769,2]
[340108939,1728576560929,-500.0,0.00029769,2]
[340108940,1728576560949,-500.0,0.00029769,2]
[340108941,1728576560970,-500.0,0.00029769,2]
[340108942,1728576560989,-500.0,0.00029769,2]
[340108943,1728576561010,-500.0,0.00029769,2]
[340108944,1728576561029,-500.0,0.00029769,2]
[340108945,1728576561049,-568.0075323,0.00029769,2]
[340108946,1728576561076,-500.0,0.00029769,2]
[340108947,1728576561096,-500.0,0.00029769,2]
[340108948,1728576561118,-15811.6872447,0.0002977,4]
[340108949,1728576561141,-31718.3083059,0.0002977,4]
[340108950,1728576561163,-238.375513,0.000298,2]
[340108951,1728576561184,-500.0,0.00031125,5]
[340108952,1728576561205,-166.37536846,0.00031197,2]
[340108953,1728576561230,-785.0,0.00031667,2]
[340108954,1728576561250,-1000.0,0.00032495,5]
[340108955,1728576561271,-465.10957434,0.00033872,2]
[340108956,1728576561291,-164.18198,0.00034141,2]
[340108957,1728576561318,-1500.0,0.00034498,5]
[340108958,1728576561339,-188.195639,0.00034795,2]
[340108959,1728576561363,-302.8183302,0.00035,2]
[340108960,1728576561384,-363.487187,0.00035001,2]
[340108961,1728576561406,-363.487187,0.0003501,2]
[340108962,1728576561429,-363.487187,0.00035019,2]
[340108963,1728576561451,-363.487187,0.00035029,2]
[340108964,1728576561471,-363.487187,0.00035038,2]
[340108965,1728576561492,-363.487187,0.00035047,2]
[340108966,1728576561516,-363.487187,0.00035056,2]
[340108967,1728576561537,-363.487187,0.00035065,2]
[340108968,1728576561557,-363.487187,0.00035074,2]
[340108969,1728576561583,-363.487187,0.00035084,2]
[340108970,1728576561606,-31718.3083059,0.0003513,5]
[340108971,1728576561628,-15811.6872447,0.0003514,5]
[340108972,1728576561655,-242.76999446,0.00035149,7]
[340108973,1728576561680,-500.0,0.00035149,7]
[340108974,1728576561702,-500.0,0.00035149,7]
[340108975,1728576561724,-500.0,0.00035149,7]
[340108976,1728576561746,-500.0,0.00035149,7]
[340108977,1728576561768,-500.0,0.00035149,7]
[340108978,1728576561789,-500.0,0.00035149,7]
[340108979,1728576561811,-194.30105629,0.00035149,7]
[340108980,1728576561833,-500.0,0.00035149,7]
[340108981,1728576561933,-500.0,0.00035149,7]
[340108982,1728576561960,-500.0,0.00035149,7]
[340108983,1728576561981,-500.0,0.00035149,7]
[340108984,1728576562003,-500.0,0.00035149,7]
[340108985,1728576562024,-250.0,0.00035149,7]
[340108986,1728576562046,-500.0,0.00035149,7]
[340108987,1728576562069,-5000.0,0.0003515,2]
[340108988,1728576562090,-302.8183302,0.0003535,2]
[340108989,1728576562111,-167.14423073,0.00035364,41]
[340108990,1728576562133,-166.37536846,0.00035411,2]
[340108991,1728576562153,-302.8183302,0.000357,2]
[340108992,1728576562175,-302.8183302,0.0003605,2]
[340108993,1728576562195,-302.8183302,0.000364,2]
[340108994,1728576562215,-454.2274953,0.0003675,4]
[340108995,1728576562238,-2000.0,0.00036839,5]
[340108996,1728576562261,-454.2274953,0.000371,4]
[340108997,1728576562283,-6322.97171115,0.00037144,2]
[340108998,1728576565120,-150.112233,0.000373,8]
[340108999,1728576565143,-5000.0,0.00037317,7]
[340109000,1728576565163,-302.21325626,0.0003745,4]
[340109001,1728576565185,-150.112233,0.000378,7]
[340109002,1728576565206,-150.112233,0.000382,6]
[340109003,1728576565229,-300.0,0.000383,20]
[340109004,1728576565252,-418.33200605,0.000386,50]
[340109054,1728576638450,-1210.78154793,0.000386,50]
[340109066,1728576638547,-3370.88644602,0.000386,50]
[340109068,1728576638556,-150.112233,0.000387,8]
[340109070,1728576638567,-150.112233,0.000391,9]
[340109072,1728576638576,-2500.0,0.0003943,5]
[340109074,1728576638586,-5000.0,0.00039483,7]
[340109076,1728576638598,-150.112233,0.000396,9]
[340109078,1728576638614,-1377.2232434,0.00039606,2]
[340109080,1728576638627,-399.82719863,0.00039606,2]
[340109082,1728576638639,-1159.62969123,0.00039606,2]
[340109085,1728576638660,-1636.11632724,0.00039606,2]
[340109087,1728576638670,-255.4640463,0.00039615,2]
[340109089,1728576638680,-166.37536846,0.00039626,2]
[340109090,1728576638693,-885.24657141,0.00039696,5]
[340109112,1728576640456,-30833.06173449,0.00039696,5]
[340109113,1728576640466,-15811.6872447,0.00039706,5]
[340109114,1728576640476,-150.112233,0.0004,10]
[340109115,1728576640485,-188.195639,0.00040173,2]
[340109116,1728576640495,-150.112233,0.000405,6]
[340109117,1728576640505,-150.112233,0.000409,7]
[340109118,1728576640516,-772.10352853,0.00041,5]
[340109119,1728576640529,-400.0000006,0.000411,120]
[340109120,1728576640542,-500.0,0.00041169,31]
[340109121,1728576640554,-500.0,0.00041169,31]
[340109122,1728576640566,-320.26709143,0.00041169,31]
[340109123,1728576640579,-500.0,0.00041169,31]
[340109124,1728576640591,-500.0,0.00041169,31]
[340109125,1728576640602,-532.55510855,0.00041169,31]
[340109126,1728576640614,-500.0,0.00041169,31]
[340109127,1728576640627,-500.0,0.00041169,31]
[340109128,1728576640638,-500.0,0.00041169,31]
[340109129,1728576640650,-500.0,0.00041169,31]
[340109130,1728576640661,-500.0,0.00041169,31]
[340109131,1728576640673,-500.0,0.00041169,31]
[340109132,1728576640688,-500.0,0.00041169,31]
[340109133,1728576640701,-500.0,0.00041169,31]
[340109134,1728576640713,-500.0,0.00041169,31]
[340109135,1728576640725,-500.0,0.00041169,31]
[340109136,1728576640737,-500.0,0.00041169,31]
[340109137,1728576640749,-500.0,0.00041169,31]
[340109138,1728576640762,-500.0,0.00041169,31]
[340109139,1728576640775,-500.0,0.00041169,31]
[340109140,1728576640786,-500.0,0.00041169,31]
[340109141,1728576640798,-500.0,0.00041169,31]
[340109142,1728576640809,-500.0,0.00041169,31]
[340109143,1728576640820,-500.0,0.00041169,31]
[340109144,1728576640832,-500.0,0.00041169,31]
[340109145,1728576640844,-500.0,0.00041169,31]
[340109146,1728576640855,-500.0,0.00041169,31]
[340109147,1728576640869,-500.0,0.00041169,31]
[340109148,1728576640880,-500.0,0.00041169,31]
[340109149,1728576640891,-500.0,0.00041169,31]
[340109150,1728576640902,-15811.6872447,0.0004117,6]
[340109151,1728576640914,-31718.3083059,0.0004118,6]
[340109152,1728576640925,-169.93899613,0.00041189,31]
[340109153,1728576640935,-500.0,0.00041189,31]
[340109154,1728576640945,-500.0,0.00041189,31]
[340109155,1728576640956,-261.01073941,0.00041189,31]
[340109156,1728576640967,-500.0,0.00041189,31]
[340109157,1728576640979,-500.0,0.00041189,31]
[340109158,1728576640989,-500.0,0.00041189,31]
[340109159,1728576641001,-500.0,0.00041189,31]
[340109160,1728576641012,-500.0,0.00041189,31]
[340109161,1728576641024,-31623.3744893,0.0004119,6]
[340109162,1728576641035,-2183.51174588,0.0004119,6]
[340109188,1728576647109,-18.33467441,0.00039696,2]
[340109192,1728577547154,-1030.83,0.0003,2]
[340109193,1728577547175,-570.82015537,0.00032016,2]
[340109195,1728577594104,-199.81037683,0.00032016,2]
[340109196,1728577594128,-250.0,0.00032084,2]
[340109197,1728577594151,-250.0,0.00032172,2]
[340109198,1728577594175,-250.0,0.0003226,2]
[340109199,1728577594198,-250.0,0.00032348,2]
[340109200,1728577594220,-36.71749454,0.00032436,2]
[340109201,1728577647114,-250.0,0.00032091,2]
[340109202,1728577647138,-8366.49262905,0.00032171,2]
[340109203,1728577651106,-1642.49850263,0.00032171,2]
[340109244,1728577748117,-881.9853686,0.00031988,2]
[340109245,1728577753119,-1375.3699113,0.00031988,2]
[340109246,1728577753140,-400.0,0.0003217,2]
[340109247,1728577753161,-400.0,0.0003217,2]
[340109248,1728577753180,-199.0,0.00032171,2]
[340109249,1728577753202,-7773.91293721,0.00032171,2]
[340109250,1728577756090,-7117.09593111,0.00032171,2]
[340109251,1728577756113,-250.0,0.00032179,2]
[340109252,1728577756136,-221.088491,0.00032207,2]
[340109253,1728577756161,-250.0,0.00032267,2]
[340109254,1728577756182,-250.0,0.00032355,2]
[340109255,1728577756204,-250.0,0.00032443,2]
[340109256,1728577756225,-223.86504,0.00032477,2]
[340109257,1728577756247,-468.1572764,0.00032519,2]
[340109258,1728577756269,-250.0,0.00032531,2]
[340109259,1728577756292,-250.0,0.00032619,2]
[340109260,1728577756316,-250.0,0.00032707,2]
[340109261,1728577756339,-250.0,0.00032795,2]
[340109262,1728577756360,-250.0,0.00032883,2]
[340109263,1728577756382,-250.0,0.00032971,2]
[340109264,1728577756402,-250.0,0.00033059,2]
[340109265,1728577756424,-250.0,0.00033147,2]
[340109266,1728577756445,-250.0,0.00033235,2]
[340109267,1728577756467,-250.0,0.00033323,2]
[340109268,1728577756487,-250.0,0.00033327,2]
[340109269,1728577756508,-250.0,0.00033411,2]
[340109270,1728577756545,-250.0,0.00033499,2]
[340109271,1728577756566,-250.0,0.00033587,2]
[340109272,1728577756587,-250.0,0.00033675,2]
[340109273,1728577756608,-133.2124574,0.00033763,2]
[340109274,1728577760217,-116.7875426,0.00033763,2]
[340109275,1728577760237,-560.0,0.00034595,2]
[340109276,1728577760259,-215.797976,0.00034795,2]
[340109277,1728577760282,-1336.87129596,0.0003515,2]
[340109278,1728577760302,-560.0,0.00035387,2]
[340109279,1728577760323,-5679.88660811,0.00035488,2]
[340109280,1728577760343,-896.0,0.00036,3]
[340109281,1728577760364,-259.4311217,0.0003624,2]
[340109282,1728577760385,-159.534834,0.00036296,2]
[340109283,1728577760406,-400.0,0.00037202,2]
[340109286,1728577787000,300.36695429,0.00036609,2]
[340109311,1728577838100,162.92793067,0.00037193,2]
[340109312,1728577838125,3861.95121214,0.00037193,2]
[340109332,1728577840873,-5423.37562935,0.00037193,2]
[340109333,1728577840884,-161.5345218,0.00037293,2]
[340109334,1728577840895,-213.8156874,0.00037393,2]
[340109335,1728577840905,-1000.0,0.00038,5]
[340109336,1728577840915,-205.68380663,0.000385,2]
[340109337,1728577840928,-342.61089387,0.00038755,120]
[340109338,1728577840938,-169.0,0.00039,14]
[340109339,1728577840948,-161.53452179,0.00039196,2]
[340109340,1728577840958,-400.0,0.00039746,30]
[340109341,1728577840968,-6852.38449389,0.00039762,2]
[340109342,1728577840978,-3073.86354286,0.0004,120]
[340109343,1728577840988,-1000.91608085,0.0004,10]
[340109344,1728577840999,-215.797976,0.00040173,2]
[340109345,1728577841009,-169.0,0.00041002,14]
[340109346,1728577841020,-161.53452179,0.00041099,2]
[340109347,1728577841039,-150.0,0.000411,2]
[340109348,1728577841050,-500.0,0.00041179,31]
[340109349,1728577841060,-500.0,0.00041179,31]
[340109350,1728577841072,-500.0,0.00041179,31]
[340109351,1728577841082,-500.0,0.00041179,31]
[340109352,1728577841091,-500.0,0.00041179,31]
[340109353,1728577841101,-500.0,0.00041179,31]
[340109354,1728577841111,-500.0,0.00041179,31]
[340109355,1728577841121,-500.0,0.00041179,31]
[340109356,1728577841136,-500.0,0.00041179,31]
[340109357,1728577841151,-500.0,0.00041179,31]
[340109358,1728577841161,-500.0,0.00041179,31]
[340109359,1728577841171,-500.0,0.00041179,31]
[340109360,1728577841181,-500.0,0.00041179,31]
[340109361,1728577841191,-500.0,0.00041179,31]
[340109362,1728577841200,-500.0,0.00041179,31]
[340109363,1728577841210,-500.0,0.00041179,31]
[340109364,1728577841220,-500.0,0.00041179,31]
[340109365,1728577841230,-500.0,0.00041179,31]
[340109366,1728577841243,-500.0,0.00041179,31]
[340109367,1728577841282,-500.0,0.00041179,31]
[340109368,1728577841294,-500.0,0.00041179,31]
[340109369,1728577841305,-500.0,0.00041179,31]
[340109370,1728577841315,-500.0,0.00041179,31]
[340109371,1728577841327,-500.0,0.00041179,31]
[340109372,1728577841337,-500.0,0.00041179,31]
[340109373,1728577841350,-564.85093891,0.00041179,31]
[340109374,1728577841360,-500.0,0.00041179,31]
[340109375,1728577841370,-500.0,0.00041179,31]
[340109376,1728577841380,-500.0,0.00041179,31]
[340109377,1728577841390,-500.0,0.00041179,31]
[340109378,1728577841401,-500.0,0.00041179,31]
[340109379,1728577841412,-500.0,0.00041179,31]
[340109380,1728577841423,-500.0,0.00041179,31]
[340109381,1728577841434,-500.0,0.00041179,31]
[340109382,1728577841444,-500.0,0.00041179,31]
[340109383,1728577841457,-500.0,0.00041179,31]
[340109384,1728577841467,-500.0,0.00041179,31]
[340109385,1728577841477,-500.0,0.00041179,31]
[340109386,1728577841488,-500.0,0.00041179,31]
[340109387,1728577841498,-500.0,0.00041179,31]
[340109388,1728577841508,-500.0,0.00041179,31]
[340109389,1728577841518,-500.0,0.00041179,31]
[340109390,1728577841529,-500.0,0.00041179,31]
[340109391,1728577841540,-500.0,0.00041179,31]
[340109392,1728577841549,-500.0,0.00041179,31]
[340109393,1728577841561,-500.0,0.00041179,31]
[340109394,1728577841575,-500.0,0.00041179,31]
[340109395,1728577841588,-500.0,0.00041179,31]
[340109396,1728577841599,-500.0,0.00041179,31]
[340109397,1728577841609,-500.0,0.00041179,31]
[340109398,1728577841619,-500.0,0.00041179,31]
[340109399,1728577841629,-500.0,0.00041179,31]
[340109400,1728577841639,-500.0,0.00041179,31]
[340109401,1728577841651,-500.0,0.00041179,31]
[340109402,1728577841665,-500.0,0.00041179,31]
[340109403,1728577841675,-500.0,0.00041179,31]
[340109404,1728577841686,-560.63137433,0.00041179,31]
[340109405,1728577841696,-19710.5416574,0.0004118,6]
[340109406,1728577841706,-25265.4710574,0.0004118,6]
[340109407,1728577841717,-39421.0833149,0.0004119,6]
[340109408,1728577841727,-15852.40854845,0.0004119,6]
[340109434,1728577843954,-137.39198571,0.0004119,6]
[340109444,1728577846800,-626.10867801,0.0004119,6]
[340109447,1728577847516,-75.40270129,0.0004119,6]
[340109448,1728577847530,-604.97165708,0.0004119,6]
[340109451,1728578737116,-231.09881331,0.0003,2]
[340109454,1728578754097,-186.39703191,0.0003,2]
[340109460,1728578850114,-250.14992747,0.0003,2]
[340109463,1728578894749,10000.0,0.0002,60]
[340109464,1728578904620,10000.0,0.0002,90]
[340109465,1728578915631,10000.0,0.00020009,120]
[340109466,1728578929788,10000.0,0.0002,30]
[340109467,1728578955109,-570.19421818,0.0003,2]
[340109468,1728578958129,-593.01000913,0.0003,2]
[340109469,1728578958152,-246.126579,0.00033406,2]
[340109470,1728578958177,-246.126579,0.00033497,2]
[340109471,1728578958199,-399.919902,0.00033546,2]
[340109472,1728578958220,-246.126579,0.00033589,2]
[340109473,1728578958243,-246.126579,0.0003368,2]
[340109474,1728578958266,-246.126579,0.00033772,2]
[340109475,1728578958292,-246.126579,0.00033864,2]
[340109476,1728578958315,-246.126579,0.00033955,2]
[340109477,1728578958339,-246.126579,0.00034047,2]
[340109478,1728578958361,-246.126579,0.00034138,2]
[340109479,1728578958383,-246.126579,0.0003423,2]
[340109480,1728578958405,-246.126579,0.00034322,2]
[340109481,1728578958426,-131.18534598,0.00034335,2]
[340109482,1728578959095,-96.37286551,0.00034335,2]
[340109483,1728578959116,-250.0,0.00034388,2]
[340109484,1728578959138,-246.126579,0.00034413,2]
[340109485,1728578959159,-246.126579,0.00034505,2]
[340109486,1728578959180,-400.0,0.00034595,2]
[340109487,1728578959202,-249.0,0.00034595,2]
[340109488,1728578959224,-246.126579,0.00034597,2]
[340109489,1728578959245,-246.126579,0.00034688,2]
[340109490,1728578959266,-246.126579,0.0003478,2]
[340109491,1728578959290,-223.323012,0.00034795,2]
[340109492,1728578959311,-246.126579,0.00034871,2]
[340109493,1728578959332,-246.126579,0.00034963,2]
[340109494,1728578959353,-246.126579,0.00035055,2]
[340109495,1728578959373,-132.20224264,0.00035146,2]
[340109567,1728579039036,-20.71078132,0.00035146,2]
[340109569,1728579039049,-93.21355504,0.00035146,2]
[340109571,1728579039058,-164.18198,0.00036843,2]
[340109573,1728579039068,-223.86504,0.0003686,2]
[340109575,1728579039078,-400.0,0.00037743,2]
[340109577,1728579039089,-14213.92015978,0.00037744,2]
[340109578,1728579039101,-10686.07984022,0.00037744,2]
[340109579,1728579039110,-155.81558713,0.00037853,14]
[340109580,1728579039120,-5380.52018166,0.00037853,2]
[340109581,1728579039130,-2466.5957327,0.00039627,80]
[340109615,1728579040823,-533.4042673,0.00039627,80]
[340109616,1728579040834,-210.0,0.00039627,4]
[340109617,1728579040844,-223.323012,0.00040173,2]
[340109618,1728579040854,-772.10352853,0.00041,5]
[340109619,1728579040864,-159.85084525,0.00041,2]
[340109620,1728579040873,-150.28329082,0.00041099,2]
[340109621,1728579040885,-3718.62987345,0.00041099,2]
[340109622,1728579040894,-348.091158,0.000411,21]
[340109623,1728579040912,-150.565229,0.000411,2]
[340109624,1728579041045,-615.01,0.0004119,30]
[340109625,1728579041056,-500.0,0.00041199,31]
[340109626,1728579041066,-500.0,0.00041199,31]
[340109627,1728579041077,-500.0,0.00041199,31]
[340109628,1728579041087,-229.4278821,0.00041199,31]
[340109629,1728579041097,-500.0,0.00041199,31]
[340109630,1728579041106,-500.0,0.00041199,31]
[340109631,1728579041116,-500.0,0.00041199,31]
[340109632,1728579041125,-500.0,0.00041199,31]
[340109633,1728579041135,-500.0,0.00041199,31]
[340109634,1728579041146,-500.0,0.00041199,31]
[340109635,1728579041155,-500.0,0.00041199,31]
[340109636,1728579041165,-500.0,0.00041199,31]
[340109637,1728579041175,-500.0,0.00041199,31]
[340109638,1728579041185,-500.0,0.00041199,31]
[340109639,1728579041195,-500.0,0.00041199,31]
[340109640,1728579041206,-500.0,0.00041199,31]
[340109641,1728579041215,-500.0,0.00041199,31]
[340109642,1728579041225,-500.0,0.00041199,31]
[340109643,1728579041235,-500.0,0.00041199,31]
[340109644,1728579041244,-500.0,0.00041199,31]
[340109645,1728579041255,-500.0,0.00041199,31]
[340109646,1728579041264,-500.0,0.00041199,31]
[340109647,1728579041274,-500.0,0.00041199,31]
[340109648,1728579041284,-500.0,0.00041199,31]
[340109649,1728579041293,-500.0,0.00041199,31]
[340109650,1728579041302,-511.81263814,0.00041199,31]
[340109651,1728579041315,-500.0,0.00041199,31]
[340109652,1728579041325,-500.0,0.00041199,31]
[340109653,1728579041335,-45382.67464048,0.000412,120]
[340109654,1728579041345,-45382.67464047,0.000412,120]
[340109655,1728579041355,-922.28494694,0.00041362,6]
[340109656,1728579041368,-3282.69148797,0.00041362,6]
[340109657,1728579041392,-15505.56522249,0.00041362,6]
[340109658,1728579041401,-6440.37583013,0.00041372,6]
[340109683,1728579046933,-62.82911244,0.00041099,2]
[340109699,1728580147152,-595.02997441,0.00033755,2]
[340109700,1728580150162,-2404.97002559,0.00033755,2]
[340109701,1728580150185,-250.0,0.00033966,2]
[340109702,1728580150206,-411.21416147,0.0003424,2]
[340109703,1728580150227,-392.9091061,0.0003434,2]
[340109704,1728580150365,-200.99071,0.00034795,2]
[340109705,1728580155123,-411.21416146,0.00035942,2]
[340109706,1728580155145,-400.0,0.00036594,2]
[340109707,1728580155168,-400.0,0.00036594,2]
[340109712,1728580166311,2363.22035546,0.0003515,2]
[340109743,1728580214277,202.107326,0.00034795,2]
[340109753,1728580228145,-533.41,0.0003965,80]
[340109754,1728580228169,-2999.99,0.0003965,78]
[340109806,1728580231833,-411.21416146,0.00037644,2]
[340109809,1728580231842,-349.68983854,0.00037743,2]
[340109811,1728580231854,-50.31016146,0.00037743,2]
[340109813,1728580231864,-400.0,0.00037743,2]
[340109815,1728580231873,-10490.08362754,0.00037744,2]
[340109818,1728580231889,-1506.46197818,0.00037744,2]
[340109820,1728580231903,-433.90707799,0.00037744,2]
[340109935,1728580238459,-12469.54731629,0.00037744,2]
[340109938,1728580238469,-511.6064451,0.00037744,2]
[340109939,1728580238478,-198.871836,0.00038027,2]
[340109941,1728580238488,-198.871836,0.00039018,2]
[340109944,1728580238498,-163.97274114,0.00039129,2]
[340109945,1728580238509,-155.0,0.0003965,3]
[340109948,1728580238519,-155.0,0.0003965,3]
[340109950,1728580238530,-4707.95515897,0.00039908,2]
[340109951,1728580238539,-198.871836,0.00040008,2]
[340109954,1728580238548,-202.107326,0.00040173,2]
[340109955,1728580238558,-320.0,0.00040354,5]
[340109957,1728580238567,-756.97018143,0.00040812,8]
[340109959,1728580238576,-245.0624,0.00040894,2]
[340109962,1728580238586,-150.28329082,0.00041099,2]
[340109964,1728580238596,-3687.21531723,0.00041099,2]
[340109966,1728580238606,-163.97274114,0.00041099,2]
[340109968,1728580238616,-615.01,0.0004116,30]
[340109970,1728580238625,-6915.16533,0.00041168,4]
[340109972,1728580238634,-500.0,0.00041169,31]
[340109974,1728580238644,-413.7197109,0.00041169,31]
[340109976,1728580238654,-500.0,0.00041169,31]
[340109978,1728580238664,-500.0,0.00041169,31]
[340109980,1728580238674,-229.4278821,0.00041169,31]
[340109982,1728580238683,-500.0,0.00041169,31]
[340109984,1728580238693,-500.0,0.00041169,31]
[340109986,1728580238702,-500.0,0.00041169,31]
[340109988,1728580238712,-500.0,0.00041169,31]
[340109990,1728580238724,-500.0,0.00041169,31]
[340109992,1728580238734,-500.0,0.00041169,31]
[340109994,1728580238744,-500.0,0.00041169,31]
[340109996,1728580238753,-500.0,0.00041169,31]
[340109998,1728580238763,-500.0,0.00041169,31]
[340110000,1728580238772,-500.0,0.00041169,31]
[340110002,1728580238784,-500.0,0.00041169,31]
[340110004,1728580238794,-500.0,0.00041169,31]
[340110005,1728580238804,-500.0,0.00041169,31]
[340110007,1728580238814,-500.0,0.00041169,31]
[340110009,1728580238823,-500.0,0.00041169,31]
[340110010,1728580238834,-500.0,0.00041169,31]
[340110011,1728580238843,-500.0,0.00041169,31]
[340110012,1728580238854,-500.0,0.00041169,31]
[340110013,1728580238864,-500.0,0.00041169,31]
[340110014,1728580238873,-511.81263814,0.00041169,31]
[340110015,1728580238884,-500.0,0.00041169,31]
[340110016,1728580238893,-500.0,0.00041169,31]
[340110017,1728580238903,-500.0,0.00041169,31]
[340110018,1728580238913,-500.0,0.00041169,31]
[340110019,1728580238923,-555.78,0.0004117,10]
[340110020,1728580239013,-42948.9781394,0.0004117,6]
[340110021,1728580239024,-62845.9137707,0.0004118,6]
[340110022,1728580239036,-160.75554345,0.00041199,30]
[340110023,1728580239047,-196.13708695,0.00041199,31]
[340110024,1728580239056,-211.08690866,0.00041199,31]
[340110025,1728580239066,-473.27509917,0.00041199,31]
[340110026,1728580239076,-500.0,0.00041199,31]
[340110027,1728580239086,-500.0,0.00041199,31]
[340110028,1728580239095,-500.0,0.00041199,31]
[340110029,1728580239105,-500.0,0.00041199,31]
[340110030,1728580239114,-500.0,0.00041199,31]
[340110031,1728580239125,-500.0,0.00041199,31]
[340110032,1728580239137,-500.0,0.00041199,31]
[340110033,1728580239148,-500.0,0.00041199,31]
[340110034,1728580239157,-500.0,0.00041199,31]
[340110035,1728580239166,-500.0,0.00041199,31]
[340110036,1728580239176,-500.0,0.00041199,31]
[340110037,1728580239186,-500.0,0.00041199,31]
[340110038,1728580239195,-500.0,0.00041199,31]
[340110039,1728580239205,-330.199431,0.000412,3]
[340110040,1728580239215,-330.199431,0.000412,3]
[340110041,1728580239225,-330.199431,0.000412,3]
[340110042,1728580239235,-330.199431,0.000412,3]